bitfinex-derivatives/quotes_ETHF0:USTF0_20250101
["timestamp","ask_amount","ask_price","bid_price","bid_amount"]
[1735747400017,0.29891,3352.6,3352.4,0.29891]
[1735747400220,0.29891,3352.5,3352.1,40.8]
[1735747400413,0.4354,3352.9,3352.1,40.8]
[1735747400615,3.2078,3352.4,3352.0,3.2078]
[1735747400821,0.29896,3351.9,3351.8,0.29897]
[1735747401021,0.29897,3351.8,3351.7,0.4437]
[1735747402228,0.4645,3352.1,3351.5,0.9015]
[1735747402420,0.29899,3351.6,3351.5,0.9015]
[1735747402923,0.299,3351.5,3351.4,3.2078]
[1735747403324,5.46736292,3351.9,3351.2,0.29902]
[1735747403325,0.29902,3351.3,3351.2,0.29902]
[1735747403519,6.21479292,3351.9,3351.2,0.29902]
[1735747403716,0.29901,3351.4,3351.2,0.29902]
[1735747403913,6.21479292,3351.9,3351.2,0.29902]
[1735747404118,0.29903,3351.1,3351.0,1.21494]
[1735747404322,3.2078,3351.5,3351.0,0.4495]
[1735747404715,0.29903,3351.1,3351.0,0.4495]
[1735747404926,0.29903,3351.1,3351.0,0.74854]
[1735747406418,0.29904,3351.0,3350.9,1.22495]
[1735747406817,0.29904,3351.0,3350.9,0.9259]
[1735747407029,0.29904,3351.0,3350.9,0.4662]
[1735747407321,0.29905,3350.9,3350.8,3.2078]
[1735747407926,0.29905,3350.9,3350.8,3.50686]
[1735747408225,2.25956292,3351.3,3350.8,3.2078]
[1735747408422,3.2078,3351.5,3350.8,3.2078]
[1735747408627,0.29902,3351.3,3351.2,0.29902]
[1735747408827,3.2078,3351.5,3350.8,3.2078]
[1735747409022,0.299,3351.4,3351.3,0.29901]
[1735747409217,3.2078,3351.5,3350.8,3.2078]
[1735747409425,1.211,3351.8,3350.5,2.72316292]
[1735747409426,3.2078,3351.1,3350.5,0.4636]
[1735747409718,0.29904,3351.0,3350.8,0.29905]
[1735747409923,3.2078,3351.1,3350.5,0.4636]
[1735747410123,2.25956292,3351.0,3350.5,0.4636]
[1735747410320,0.29907,3350.6,3350.5,0.76268]
[1735747410519,0.29907,3350.7,3350.6,0.29907]
[1735747410721,2.25956292,3351.0,3350.5,0.4636]
[1735747411019,3.50683,3351.1,3350.9,0.29904]
[1735747411226,3.2078,3351.1,3351.0,0.4541]
[1735747411425,3.50683,3351.1,3351.0,0.4541]
[1735747411628,0.29903,3351.1,3351.0,0.4541]
[1735747412425,0.29902,3351.2,3351.0,0.4541]
[1735747412630,0.29902,3351.2,3351.1,0.29903]
[1735747412829,0.29903,3351.1,3351.0,0.4541]
[1735747414330,2.25956292,3351.3,3350.5,3.6714]
[1735747414526,0.29907,3350.6,3350.5,0.9282]
[1735747416726,0.29907,3350.6,3350.5,1.22728]
[1735747417029,0.29907,3350.6,3350.5,0.9282]
[1735747417229,0.29907,3350.6,3350.5,1.22728]
[1735747417429,0.29907,3350.6,3350.5,0.9282]
[1735747417930,0.29907,3350.6,3350.5,0.4646]
[1735747418130,2.25956292,3351.0,3350.1,0.4423]
[1735747418330,0.29911,3350.2,3350.1,0.8695]
[1735747419429,0.29911,3350.2,3350.1,1.16862]
[1735747420125,0.4275,3350.5,3350.1,0.8695]
[1735747420319,1.211,3350.9,3350.1,0.8695]
[1735747420527,0.29911,3350.3,3350.2,0.2991]
[1735747420926,0.4275,3350.8,3350.1,0.8695]
[1735747421124,0.29908,3350.6,3350.5,0.29908]
[1735747421834,0.4275,3350.8,3350.4,3.2078]
[1735747422021,0.29907,3350.8,3350.7,0.29907]
[1735747422423,2.70976292,3351.3,3350.9,0.29905]
[1735747422634,0.29904,3351.1,3351.0,0.73764]
[1735747423331,0.29904,3351.1,3351.0,0.4386]
[1735747424336,1.211,3351.3,3351.0,0.4386]
[1735747424530,0.29903,3351.2,3351.1,0.72893]
[1735747425439,0.29898,3351.7,3351.6,0.29899]
[1735747425735,0.4502,3351.8,3351.2,0.4401]
[1735747425932,0.299,3351.6,3351.5,0.29899]
[1735747426632,3.2078,3352.0,3351.2,0.4401]
[1735747426935,3.2078,3352.0,3351.9,0.29896]
[1735747427131,2.25956292,3352.5,3351.8,3.2078]
[1735747427327,0.74733,3352.3,3351.4,3.2078]
[1735747427628,0.29898,3351.7,3351.6,0.29899]
[1735747428037,2.25956292,3352.2,3351.4,3.2078]
[1735747428237,0.29897,3351.9,3351.8,0.29897]
[1735747428838,5.46736292,3352.2,3351.4,3.2078]
[1735747429039,0.29898,3351.7,3351.6,0.29899]
[1735747429238,0.29898,3351.8,3351.5,0.299]
[1735747429538,0.29898,3351.8,3351.7,0.29898]
[1735747430038,0.29898,3351.7,3351.6,0.29899]
[1735747431941,2.25956292,3352.2,3351.7,0.29897]
[1735747431942,0.29898,3351.8,3351.7,0.29897]
[1735747432336,2.25956292,3352.2,3351.2,3.6479]
[1735747432639,0.29897,3351.9,3351.8,0.29897]
[1735747432844,0.29896,3352.0,3351.9,0.29896]
[1735747433142,0.29897,3351.8,3351.3,0.74755]
[1735747433442,3.2078,3352.3,3351.3,0.74755]
[1735747433736,0.29898,3351.8,3351.7,0.29898]
[1735747433934,2.25956292,3352.2,3351.2,3.6479]
[1735747434140,0.299,3351.5,3351.4,0.299]
[1735747434338,0.74737,3352.1,3351.2,3.6479]
[1735747434639,0.29898,3351.7,3351.6,0.29898]
[1735747434836,2.25956292,3352.2,3351.2,3.6479]
[1735747435238,0.29898,3351.7,3351.6,0.29898]
[1735747435834,0.299,3351.6,3351.5,0.29899]
[1735747436040,0.299,3351.5,3351.4,0.29901]
[1735747437142,1.216,3352.0,3351.2,3.6479]
[1735747437435,1.216,3352.0,3351.9,0.29896]
[1735747437641,0.29896,3352.0,3351.9,0.29896]
[1735747438031,1.6543,3352.4,3351.7,0.4318]
[1735747438233,3.2078,3352.2,3351.7,0.4318]
[1735747438434,0.29896,3352.0,3351.9,0.29896]
[1735747441246,3.2078,3352.2,3351.8,0.4358]
[1735747441445,0.29896,3351.9,3351.8,0.73477]
[1735747442244,0.29896,3352.0,3351.9,0.29896]
[1735747442432,0.29897,3351.8,3351.5,0.29899]
[1735747442637,2.25956292,3351.8,3351.3,0.441]
[1735747442940,0.299,3351.6,3351.5,0.29899]
[1735747443441,0.4398,3351.7,3351.3,0.441]
[1735747443641,0.29902,3351.3,3351.2,3.2078]
[1735747443946,3.2078,3351.4,3350.5,1.3436]
[1735747444141,0.29908,3350.7,3350.6,0.29908]
[1735747444844,0.4398,3351.0,3350.7,0.29906]
[1735747444845,0.29907,3350.8,3350.7,0.29906]
[1735747445142,0.29906,3350.9,3350.8,0.29906]
[1735747445342,0.29904,3351.1,3351.0,0.29904]
[1735747445543,0.29905,3351.0,3350.9,0.29905]
[1735747445938,0.29904,3351.1,3351.0,0.29904]
[1735747446140,3.2078,3351.4,3350.6,3.2078]
[1735747446334,3.2078,3351.4,3351.3,0.29902]
[1735747446541,3.2078,3351.4,3350.8,0.74766]
[1735747446737,3.2078,3351.4,3350.6,3.9555]
[1735747446738,3.2078,3351.4,3351.1,0.46]
[1735747446940,0.29903,3351.2,3351.1,0.75903]
[1735747447140,0.29903,3351.2,3351.1,0.46]
[1735747447342,3.2078,3351.4,3350.6,3.2078]
[1735747447544,0.29905,3351.0,3350.9,0.29905]
[1735747447743,0.29905,3351.0,3349.5,0.29917]
[1735747447744,0.29916,3349.7,3349.5,0.29917]
[1735747447943,0.29916,3349.7,3349.1,6.9564108]
[1735747447944,3.2078,3349.6,3349.4,0.29918]
[1735747448244,3.2078,3349.6,3349.5,0.29918]
[1735747448746,3.2078,3349.6,3349.3,0.879]
[1735747449344,0.29919,3349.4,3349.3,0.879]
[1735747450145,0.29918,3349.5,3349.3,1.17819]
[1735747450341,0.29917,3349.6,3349.3,1.17819]
[1735747450644,0.29918,3349.5,3349.3,1.17819]
[1735747451746,0.29919,3349.4,3349.3,0.879]
[1735747452451,0.29919,3349.4,3349.3,0.4417]
[1735747454744,2.25956292,3349.5,3349.1,0.4487]
[1735747454951,2.55876292,3349.2,3349.1,0.4487]
[1735747457348,2.25956292,3349.2,3348.9,3.6675]
[1735747457554,0.29922,3349.0,3348.9,3.6675]
[1735747457750,3.2078,3349.0,3348.4,0.4343]
[1735747457956,2.25956292,3348.5,3348.3,3.2078]
[1735747458250,2.25956292,3348.5,3348.4,1.16617]
[1735747458459,2.55882292,3348.5,3348.4,0.8669]
[1735747459152,2.55882292,3348.5,3348.4,0.4434]
[1735747460753,2.25956292,3348.8,3348.4,0.4434]
[1735747461054,3.50702,3349.0,3348.8,0.29924]
[1735747461260,0.29922,3349.0,3348.9,0.4421]
[1735747461559,2.25956292,3349.1,3348.9,1.16692]
[1735747461859,0.2992,3349.2,3349.0,0.29922]
[1735747462251,0.29922,3349.1,3348.9,4.37473]
[1735747462455,0.29921,3349.2,3348.9,4.37473]
[1735747462856,0.29921,3349.2,3349.1,0.29921]
[1735747463558,0.2992,3349.3,3349.2,0.2992]
[1735747463759,5.46736292,3349.4,3348.9,4.0755]
[1735747463953,0.29921,3349.2,3349.1,0.29921]
[1735747464454,5.46736292,3349.4,3348.9,0.8677]
[1735747464653,0.29922,3349.0,3348.9,0.8677]
[1735747464869,0.29922,3349.0,3348.9,1.16693]
[1735747465354,0.29922,3349.0,3348.9,0.8677]
[1735747465560,0.29923,3348.9,3348.8,0.29923]
[1735747465965,2.55877292,3349.1,3349.0,0.29922]
[1735747466559,2.25956292,3349.1,3349.0,0.29922]
[1735747466857,5.46736292,3349.4,3348.9,3.2078]
[1735747467156,0.2992,3349.3,3349.2,0.2992]
[1735747467559,5.46736292,3349.4,3349.3,0.29919]
[1735747467759,3.2078,3349.4,3349.3,0.29919]
[1735747468657,1.216,3349.8,3349.1,2.25956292]
[1735747468658,3.2078,3349.8,3349.1,2.25956292]
[1735747468971,2.25956292,3350.4,3350.0,0.29913]
[1735747468972,0.29912,3350.1,3350.0,0.29913]
[1735747469161,0.29911,3350.2,3350.1,0.29911]
[1735747470257,3.2078,3350.4,3349.7,2.25956292]
[1735747470463,3.2078,3350.4,3350.3,0.2991]
[1735747470859,3.2078,3350.8,3350.1,0.8844]
[1735747471059,0.29904,3351.1,3350.9,0.29905]
[1735747471362,1.216,3351.2,3350.8,0.29906]
[1735747471363,0.29905,3351.0,3350.8,0.29906]
[1735747471869,1.216,3351.2,3350.5,3.2078]
[1735747472169,0.29908,3350.6,3350.5,3.2078]
[1735747472479,2.25956292,3351.0,3350.5,3.50688]
[1735747472667,0.29906,3350.8,3350.6,0.29907]
[1735747472861,1.216,3351.2,3350.6,0.29908]
[1735747473070,1.216,3351.2,3350.5,3.50688]
[1735747473272,1.216,3351.2,3350.5,3.2078]
[1735747473466,0.29907,3350.7,3350.6,0.29907]
[1735747474468,0.29907,3350.7,3350.5,3.2078]
[1735747474770,0.29904,3351.0,3350.5,3.2078]
[1735747475070,5.46736292,3351.3,3350.5,3.2078]
[1735747475264,0.29906,3350.8,3350.5,3.2078]
[1735747475569,0.29905,3351.0,3350.8,0.29905]
[1735747475867,0.29905,3351.0,3350.9,0.29905]
[1735747476070,0.29904,3351.0,3350.9,0.29905]
[1735747476380,0.29906,3350.9,3350.8,0.29906]
[1735747476569,0.29905,3351.0,3350.9,0.29905]
[1735747477265,0.29905,3350.9,3350.8,0.29905]
[1735747477466,5.46736292,3351.3,3350.5,3.2078]
[1735747477665,0.29907,3350.7,3350.5,3.2078]
[1735747478171,2.25956292,3351.0,3350.5,3.2078]
[1735747478469,5.46736292,3351.3,3350.5,3.2078]
[1735747478866,0.29907,3350.7,3350.6,0.75327]
[1735747479361,6.21491292,3351.3,3350.6,0.4542]
[1735747479561,0.29906,3350.8,3350.6,0.4542]
[1735747479772,0.29907,3350.7,3350.6,0.4542]
[1735747480364,0.29907,3350.7,3350.5,3.2078]
[1735747480365,0.29908,3350.6,3350.5,3.2078]
[1735747480667,0.29908,3350.6,3350.1,0.4479]
[1735747480668,0.29911,3350.2,3350.1,0.4479]
[1735747481166,0.29912,3350.1,3350.0,3.2078]
[1735747483666,3.2078,3350.3,3349.9,0.29913]
[1735747483970,0.29913,3350.0,3349.9,0.29913]
[1735747484468,3.2078,3350.3,3350.2,0.29911]
[1735747484671,0.29909,3350.5,3350.4,0.29909]
[1735747484972,0.29907,3350.7,3350.6,0.29907]
[1735747485468,0.29904,3351.0,3350.4,0.74774]
[1735747485767,0.29906,3350.9,3350.8,0.29905]
[1735747485957,0.29907,3350.7,3350.4,0.4237]
[1735747486157,0.29907,3350.7,3350.6,0.29908]
[1735747486966,0.29906,3350.9,3350.8,0.29905]
[1735747487968,0.29904,3351.0,3350.9,0.29904]
[1735747489170,0.29904,3351.0,3350.4,1.17142]
[1735747489171,6.68336292,3351.3,3350.4,0.4237]
[1735747489373,0.29906,3350.8,3350.7,0.29906]
[1735747490072,0.29905,3350.9,3350.8,0.29905]
[1735747491172,0.29909,3350.5,3350.4,0.72279]
[1735747491376,0.29909,3350.5,3350.4,0.4237]
[1735747494781,0.29908,3350.6,3350.5,0.29908]
[1735747495071,3.2078,3350.9,3350.4,0.4237]
[1735747495271,0.29908,3350.7,3350.6,0.29907]
[1735747495468,3.2078,3350.9,3350.4,0.4237]
[1735747495669,3.2078,3351.3,3350.4,0.4237]
[1735747495865,3.2078,3351.3,3350.7,3.2078]
[1735747496171,0.29904,3351.1,3351.0,0.29903]
[1735747497576,0.29906,3350.9,3350.8,0.29906]
[1735747498074,3.2078,3351.3,3350.7,3.2078]
[1735747498278,0.29902,3351.2,3351.1,0.29902]
[1735747498975,3.50682,3351.3,3351.2,0.29902]
[1735747499189,3.2078,3351.3,3350.8,0.4398]
[1735747499370,3.2078,3351.3,3350.9,0.4433]
[1735747499570,0.29903,3351.2,3351.1,0.29902]
[1735747500474,3.2078,3351.3,3351.0,0.4497]
[1735747500475,0.29903,3351.1,3351.0,0.4497]
[1735747502174,0.29908,3350.5,3350.4,0.4449]
[1735747502372,0.29911,3350.2,3350.1,3.94861]
[1735747502976,3.2078,3350.9,3350.1,3.6495]
[1735747503177,3.2078,3350.9,3350.5,3.2078]
[1735747503377,0.29908,3350.6,3350.1,3.6495]
[1735747503573,0.29908,3350.6,3350.5,0.29909]
[1735747503978,0.4435,3351.2,3350.1,3.6495]
[1735747504173,3.2078,3351.4,3351.3,0.29903]
[1735747504375,1.19494,3352.0,3350.8,2.25956292]
[1735747504376,0.29899,3351.8,3351.6,0.299]
[1735747504677,3.2078,3351.9,3351.5,0.29901]
[1735747504875,0.29899,3351.8,3351.5,0.29901]
[1735747505179,3.2078,3351.9,3351.2,0.4304]
[1735747505377,3.2078,3351.9,3351.3,0.29902]
[1735747505674,3.2078,3351.9,3351.2,0.4304]
[1735747506277,0.29899,3351.8,3351.5,0.299]
[1735747506880,0.29898,3351.8,3351.6,0.7225]
[1735747507077,0.29899,3351.7,3351.6,0.4235]
[1735747507269,0.29899,3351.8,3351.6,0.4235]
[1735747507676,0.29897,3351.8,3351.6,0.4235]
[1735747507876,0.29898,3351.8,3351.6,0.4235]
[1735747508077,3.2078,3352.1,3351.6,0.4235]
[1735747508369,0.29898,3351.7,3351.6,0.4235]
[1735747508774,0.29897,3351.8,3351.6,0.72249]
[1735747509084,3.2078,3352.1,3351.7,0.29898]
[1735747509377,0.29895,3352.0,3351.7,0.29898]
[1735747510074,3.50675,3352.1,3351.7,0.462]
[1735747510275,3.2078,3352.1,3351.9,0.29896]
[1735747510475,3.50675,3352.1,3352.0,0.4594]
[1735747512279,3.2078,3352.1,3352.0,0.4594]
[1735747512477,3.50674,3352.1,3352.0,0.4594]
[1735747512882,0.29897,3351.9,3351.7,0.462]
[1735747513380,3.2078,3352.1,3351.7,0.76097]
[1735747513381,0.29895,3352.0,3351.7,0.76097]
[1735747514280,3.2078,3352.1,3351.7,0.462]
[1735747514476,0.29897,3351.8,3351.7,0.462]
[1735747515082,0.29897,3351.8,3351.2,0.4263]
[1735747515083,0.299,3351.5,3351.3,0.29901]
[1735747515478,0.4323,3352.0,3351.2,1.3246]
[1735747515777,0.4323,3352.0,3351.6,0.29899]
[1735747515983,0.29897,3351.8,3351.6,0.29899]
[1735747516184,0.29896,3351.9,3351.6,0.29899]
[1735747516490,0.29898,3351.7,3351.6,0.29899]
[1735747516780,0.29899,3351.7,3351.5,0.29899]
[1735747516983,0.4323,3352.0,3351.2,1.3246]
[1735747517176,0.29897,3351.9,3351.8,0.29897]
[1735747517375,0.29896,3351.9,3351.8,0.29897]
[1735747517779,0.29898,3351.8,3351.2,1.3246]
[1735747518078,0.29897,3351.9,3351.8,0.29897]
[1735747518282,3.2078,3352.1,3351.2,1.3246]
[1735747518584,0.29897,3351.9,3351.2,1.3246]
[1735747518781,3.2078,3352.1,3351.4,0.74752]
[1735747519080,3.2078,3352.5,3351.7,2.25956292]
[1735747519284,0.29894,3352.2,3352.1,0.29894]
[1735747519687,3.50671,3352.5,3352.4,0.29892]
[1735747519887,3.2078,3352.5,3352.0,3.2078]
[1735747520080,0.29894,3352.2,3352.1,0.29894]
[1735747520380,0.29894,3352.1,3352.0,3.2078]
[1735747521183,0.29894,3352.1,3352.0,3.50675]
[1735747521488,0.29893,3352.2,3352.1,0.29893]
[1735747522083,2.25956292,3352.3,3351.9,0.9227]
[1735747522384,0.29895,3352.0,3351.9,0.456]
[1735747523885,0.29895,3352.0,3351.9,0.75495]
[1735747524081,3.2078,3352.5,3351.9,0.456]
[1735747524481,0.29891,3352.5,3352.4,0.29891]
[1735747524986,0.4306,3352.7,3352.4,0.29891]
[1735747525180,0.29891,3352.5,3352.4,0.29891]
[1735747525382,0.4306,3352.7,3352.0,3.2078]
[1735747525587,0.2989,3352.5,3352.4,0.2989]
[1735747528093,3.2078,3352.9,3352.8,0.29887]
[1735747528794,3.50666,3352.9,3352.8,0.29887]
[1735747529192,3.2078,3352.9,3352.6,0.4422]
[1735747529494,3.50667,3352.9,3352.8,0.29887]
[1735747530791,3.2078,3352.9,3352.8,0.29887]
[1735747530994,0.29883,3353.3,3353.2,0.29883]
[1735747531290,0.29882,3353.5,3353.4,0.29882]
[1735747531588,3.2078,3353.6,3352.9,3.2078]
[1735747531789,0.29881,3353.5,3352.9,3.2078]
[1735747531997,2.25956292,3353.8,3353.2,0.29883]
[1735747532195,0.29883,3353.4,3353.3,0.29883]
[1735747532497,0.29883,3353.4,3353.2,0.29883]
[1735747532690,0.29883,3353.4,3353.3,0.4227]
[1735747533889,0.29883,3353.4,3353.3,0.72153]
[1735747534294,3.2078,3353.5,3353.4,0.29882]
[1735747534795,3.50661,3353.5,3353.4,0.4496]
[1735747535798,0.29885,3353.2,3353.0,0.29885]
[1735747535996,0.29885,3353.2,3353.1,0.29885]
[1735747536407,0.75453,3353.4,3353.3,0.29883]
[1735747536808,0.4557,3353.4,3352.9,3.2078]
[1735747537009,0.4557,3353.4,3353.3,0.29883]
[1735747537209,0.75452,3353.4,3353.3,0.29883]
[1735747539208,2.25956292,3353.8,3352.9,3.2078]
[1735747539409,3.2078,3353.9,3352.9,3.95498]
[1735747539708,0.29882,3353.5,3353.4,0.29883]
[1735747540310,0.29882,3353.5,3353.4,0.76393]
[1735747541414,0.29881,3353.6,3353.5,0.29881]
[1735747542315,0.29882,3353.5,3353.4,0.8884]
[1735747543420,0.29882,3353.5,3353.4,0.4651]
[1735747543713,2.25956292,3353.8,3353.0,0.4233]
[1735747543905,0.29885,3353.2,3353.1,0.29885]
[1735747545011,2.25956292,3353.8,3353.0,0.4233]
[1735747545214,2.25956292,3353.8,3353.5,0.29881]
[1735747545407,0.29881,3353.6,3353.5,0.29881]
[1735747548718,0.29883,3353.4,3353.3,0.29883]
[1735747555015,2.25956292,3353.5,3353.0,0.4233]
[1735747555215,0.29886,3353.1,3352.9,0.29888]
[1735747555415,0.29889,3352.8,3352.7,0.72819]
[1735747557022,0.29889,3352.8,3352.7,0.4293]
[1735747557315,0.29891,3352.6,3352.5,3.2078]
[1735747557919,0.29891,3352.5,3352.4,0.29892]
[1735747558223,3.2078,3352.7,3352.2,0.4429]
[1735747558717,0.29892,3352.5,3352.4,0.29891]
[1735747561224,0.29893,3352.3,3352.2,0.74183]
[1735747561524,0.29892,3352.5,3352.4,0.29892]
[1735747562122,3.2078,3352.7,3352.2,0.4429]
[1735747562313,3.6553,3353.3,3352.3,3.95514]
[1735747562517,0.29888,3352.9,3352.8,0.29888]
[1735747562717,3.6553,3353.3,3352.9,0.29887]
[1735747562718,0.29888,3353.0,3352.9,0.29887]
[1735747563115,3.6553,3353.3,3352.5,0.74729]
[1735747563321,0.29887,3353.1,3353.0,0.29887]
[1735747563625,3.6553,3353.3,3352.5,0.74729]
[1735747563828,0.29887,3353.0,3352.9,0.29887]
[1735747565826,0.29889,3352.9,3352.8,0.29889]
[1735747566034,3.2078,3353.3,3353.2,0.29885]
[1735747567029,3.2078,3353.7,3353.0,2.25956292]
[1735747567229,0.453,3354.0,3353.9,0.29879]
[1735747567423,3.2078,3354.3,3353.6,0.74705]
[1735747567630,3.50656,3354.3,3354.2,0.29876]
[1735747568027,0.29876,3354.2,3354.1,0.29877]
[1735747568821,3.2078,3354.3,3353.6,1.3252]
[1735747569023,0.29878,3354.0,3353.9,0.29878]
[1735747569229,0.29877,3354.1,3354.0,0.29878]
[1735747570221,0.4231,3354.2,3353.6,1.3252]
[1735747570429,3.50661,3353.7,3353.6,0.8622]
[1735747570929,3.50661,3353.7,3353.6,1.16102]
[1735747571126,3.2078,3353.7,3353.6,1.16102]
[1735747571325,3.50661,3353.7,3353.6,1.16102]
[1735747571629,3.2078,3353.7,3352.9,3.2078]
[1735747571831,0.29887,3353.0,3352.9,3.2078]
[1735747572838,5.91356292,3353.2,3352.5,3.95391]
[1735747573129,0.2989,3352.7,3352.5,3.95391]
[1735747573332,0.4438,3352.9,3352.5,0.4472]
[1735747573333,0.2989,3352.6,3352.5,0.4472]
[1735747573524,0.2989,3352.7,3352.6,0.2989]
[1735747574533,0.2989,3352.7,3352.5,0.4472]
[1735747574534,0.4438,3352.9,3352.5,0.4472]
[1735747574721,0.29889,3352.8,3352.5,0.4472]
[1735747574927,0.4438,3352.9,3352.6,0.2989]
[1735747575234,0.2989,3352.7,3352.6,0.2989]
[1735747575627,0.4438,3352.9,3352.5,0.4472]
[1735747575925,0.29889,3352.8,3352.7,0.29889]
[1735747576728,3.2078,3353.2,3352.5,0.4472]
[1735747577031,3.2078,3353.2,3353.1,0.29886]
[1735747577228,1.204,3353.7,3352.8,0.74722]
[1735747577430,0.29884,3353.4,3353.3,0.29884]
[1735747577828,3.2078,3353.7,3353.4,0.29883]
[1735747578135,0.29882,3353.5,3353.4,0.29883]
[1735747578433,0.29882,3353.6,3353.5,0.29882]
[1735747578738,3.2078,3353.7,3353.0,3.2078]
[1735747578941,0.29883,3353.5,3353.4,0.29883]
[1735747580328,0.29884,3353.3,3353.2,0.29885]
[1735747580534,0.29886,3353.1,3353.0,3.2078]
[1735747581535,0.29886,3353.1,3353.0,3.50667]
[1735747581828,0.29886,3353.1,3352.5,0.4472]
[1735747581829,3.2078,3353.1,3352.5,0.4472]
[1735747582029,3.5067,3352.6,3352.5,0.8833]
[1735747582231,0.29894,3352.2,3352.1,3.6344]
[1735747582734,0.29894,3352.2,3352.1,3.50675]
[1735747583533,0.29894,3352.3,3352.2,0.29894]
[1735747583838,5.46736292,3352.6,3352.1,3.2078]
[1735747584031,0.29894,3352.2,3352.1,3.50675]
[1735747584437,0.29891,3352.5,3352.2,0.29893]
[1735747584736,0.29894,3352.3,3352.2,0.29893]
[1735747585635,5.46736292,3352.6,3352.1,3.2078]
[1735747585836,0.29894,3352.2,3352.1,3.50674]
[1735747586639,0.29897,3351.9,3351.8,0.9022]
[1735747587744,0.29897,3351.9,3351.8,1.20117]
[1735747587933,3.2078,3352.0,3351.9,0.29897]
[1735747588143,3.6566,3352.5,3351.8,0.9022]
[1735747588438,3.6566,3352.5,3352.1,0.29895]
[1735747588439,0.29895,3352.2,3352.1,0.29895]
[1735747589036,0.29895,3352.1,3352.0,0.29895]
[1735747589235,3.6566,3352.5,3351.8,0.9022]
[1735747589647,0.29897,3351.9,3351.8,0.9022]
[1735747591144,0.29896,3352.0,3351.9,0.29896]
[1735747591838,0.29897,3351.9,3351.8,1.20117]
[1735747592041,0.29896,3352.0,3351.9,0.29896]
[1735747593446,4.8616,3352.5,3351.8,0.9022]
[1735747593651,0.29897,3351.9,3351.8,0.9022]
[1735747594652,2.25956292,3352.3,3351.8,0.9022]
[1735747594949,0.29896,3352.0,3351.9,0.29896]
[1735747595146,0.29897,3351.9,3351.8,1.20117]
[1735747596145,0.29897,3351.9,3351.8,0.9022]
[1735747596551,0.29897,3351.9,3351.8,1.20117]
[1735747597947,3.2078,3352.2,3351.8,1.20117]
[1735747597948,3.2078,3352.2,3352.1,0.29895]
[1735747599346,3.50674,3352.2,3352.1,0.29895]
[1735747600158,0.29895,3352.1,3352.0,0.29895]
[1735747601753,3.2078,3352.2,3351.9,0.4442]
[1735747602051,0.29896,3351.9,3351.8,0.9022]
[1735747602452,0.29896,3351.9,3351.8,1.20117]
[1735747603960,0.29896,3351.9,3351.8,0.9022]
[1735747604352,3.2078,3352.2,3351.8,0.9022]
[1735747604558,3.50674,3352.2,3352.1,0.29895]
[1735747605352,0.29896,3352.1,3352.0,0.29895]
[1735747606351,3.50674,3352.2,3352.1,0.29895]
[1735747607257,3.2078,3352.2,3352.1,0.29895]
[1735747608155,3.50674,3352.2,3352.1,0.29895]
[1735747608749,3.2078,3352.2,3352.1,0.29895]
[1735747608949,0.29891,3352.6,3352.5,0.2989]
[1735747610158,0.2989,3352.7,3352.6,0.2989]
[1735747610358,3.2078,3353.0,3352.3,0.4309]
[1735747610553,0.29891,3352.6,3352.5,0.29891]
[1735747611956,3.2078,3353.0,3352.7,0.29889]
[1735747612460,3.2078,3353.0,3352.8,0.29888]
[1735747612461,0.29888,3352.9,3352.8,0.29888]
[1735747613757,3.2078,3353.0,3352.7,0.29888]
[1735747613758,0.29889,3352.8,3352.7,0.29888]
[1735747614053,0.29889,3352.8,3352.5,0.29891]
[1735747614258,0.29889,3352.8,3352.7,0.29889]
[1735747614753,3.2078,3353.0,3352.5,0.74729]
[1735747614957,3.50667,3353.0,3352.9,0.29888]
[1735747615757,3.2078,3353.0,3352.9,0.29888]
[1735747616158,3.50667,3353.0,3352.9,0.29888]
[1735747616755,3.50667,3353.0,3352.3,3.2078]
[1735747616756,3.2078,3353.0,3352.3,3.2078]
[1735747616961,0.29891,3352.6,3352.5,0.2989]
[1735747617261,0.29889,3352.8,3352.7,0.29889]
[1735747618266,3.2078,3353.0,3352.9,0.29888]
[1735747618768,3.50667,3353.0,3352.9,0.29888]
[1735747620156,3.2078,3353.0,3352.9,0.29888]
[1735747620561,3.50667,3353.0,3352.9,0.29888]
[1735747622864,3.2078,3353.0,3352.9,0.29888]
[1735747623170,3.6336,3353.9,3352.9,2.55844292]
[1735747623465,3.93239,3353.9,3353.8,0.2988]
[1735747623758,3.93239,3353.9,3353.6,0.29881]
[1735747623759,0.29881,3353.7,3353.6,0.29881]
[1735747624365,0.29882,3353.6,3353.5,0.29882]
[1735747625563,0.2988,3353.8,3353.7,0.2988]
[1735747625963,3.2078,3353.9,3353.8,0.2988]
[1735747628861,3.2078,3353.9,3353.8,0.7418]
[1735747629462,0.29876,3354.2,3354.1,0.29876]
[1735747629663,3.50656,3354.3,3354.2,0.29876]
[1735747629862,0.4359,3354.6,3353.9,3.2078]
[1735747630063,0.29876,3354.3,3353.9,3.2078]
[1735747630369,0.29875,3354.4,3354.3,0.29875]
[1735747630764,0.4359,3354.6,3353.9,3.2078]
[1735747630967,0.29875,3354.3,3354.2,0.29875]
[1735747631864,0.4359,3354.6,3353.9,3.2078]
[1735747632263,0.29877,3354.2,3354.0,0.29877]
[1735747632460,0.29877,3354.2,3354.1,0.29877]
[1735747632666,0.29876,3354.3,3354.2,0.29876]
[1735747633071,0.29875,3354.4,3354.2,0.29876]